Cogmind - Beta 17.1 @@@ ROGUE MODE // 2026.08.28 @ 19:25:27 Player: MoYuYu Result: Destroyed by P-80 Master with Gamma Rifle Performance ------------- Evolutions (7) 3500 Regions Visited (11) 2200 Robots Destroyed (75) 375 Value Destroyed (3143) 3143 Prototype IDs (26) 520 Alien Tech Used (0) 0 Bonus (1001) 1001 TOTAL SCORE: 10739 Bonus ------- Follower Combat Kills 701 Aligned with FarCom 300 Cogmind --------- Core Integrity 0/1300 Matter 300/300 Energy 100/100 System Corruption 51% Temperature Cool (0) Movement Core (50) Location -3/Research Parts ------- > --- POWER (1) -------- (None) > --- PROPULSION (5) --- (None) > --- UTILITY (12) ----- Enhanced Optical Array Advanced Target Analyzer > --- WEAPON (3) ------- (None) > --- INVENTORY (5) ---- Advanced Heat Sink Peak State ------------ > --- POWER ------------ Particle Reactor > --- PROPULSION ------- Armored Medium Treads Advanced Medium Treads Compact Wheel Armored Huge Wheel > --- UTILITY ---------- Advanced Heat Sink Large Storage Unit Enhanced Optical Array Long-range Terrain Scanner EM Shield Improved System Guard Army-in-a-Box > --- WEAPON ----------- Advanced Beam Rifle Phase Gun Advanced Assault Cannon > --- INVENTORY -------- Fission Core Reinforced Antimatter Reactor Armored Medium Treads Wheel Compact Wheel Compact Wheel Improved Heat Sink Medium Matter Pod Trap Scanner Advanced Signal Interpreter Advanced Terrain Scanner Graphene Brace Variable Charge Gun Gauss Rifle [Rating: 134] Favorites ----------- Power Light Ion Engine Engine Light Ion Engine Power Core Micro Fission Core Reactor Particle Reactor Propulsion Compact Wheel Treads Armored Medium Treads Leg Aluminum Leg Wheel Compact Wheel Hover Unit Combat Antigrav System Utility Large Storage Unit Device Army-in-a-Box Storage Large Storage Unit Processor Enhanced Optical Array Hackware Hacking Suite Protection Medium Armor Plating Weapon Advanced Beam Rifle Energy Gun Advanced Beam Rifle Energy Cannon Nova Cannon Ballistic Gun Gauss Rifle Ballistic Cannon Advanced Assault Cannon Impact Weapon Powered Hammer Special Melee Weapon Datajack Build | -11 -10 -9 -9 -9 -8 -8 -7 -6 -5 -4 -3 ------- Run | Yrd Mat Mat Min Exi Min Mat Fac Fac Fac Fac Res Slots Evolved 14 | . . 2 . . . 2 2 2 2 2 2 Power . | . . . . . . . . . . . . Propulsion 3 | . . 1 . . . . . 1 . 1 . Utility 10 | . . 1 . . . 2 2 1 2 1 1 Weapon 1 | . . . . . . . . . . . 1 Parts Attached 93 | 6 4 19 . 3 . 10 1 3 4 5 38 Power 13 | 1 2 2 . 1 . 1 . . 1 . 5 Engine 7 | 1 2 2 . 1 . 1 . . . . . Core 1 | . . . . . . . . . 1 . . Reactor 5 | . . . . . . . . . . . 5 Propulsion 27 | 2 . 9 . . . 4 . 1 2 1 8 Treads 4 | . . . . . . . . . 2 1 1 Leg 8 | 2 . 5 . . . 1 . . . . . Wheel 12 | . . 4 . . . 3 . 1 . . 4 Hover 3 | . . . . . . . . . . . 3 Flight . | . . . . . . . . . . . . Utility 34 | 1 1 4 . 2 . 3 1 2 1 2 17 Device 19 | . 1 3 . . . 1 1 1 . 1 11 Storage 7 | 1 . . . 2 . 2 . . . . 2 Processor 5 | . . . . . . . . . . 1 4 Hackware 1 | . . 1 . . . . . . . . . Protection 2 | . . . . . . . . 1 1 . . Artifact . | . . . . . . . . . . . . Weapon 19 | 2 1 4 . . . 2 . . . 2 8 Energy Gun 10 | 1 . 4 . . . 1 . . . . 4 Energy Cannon 1 | . . . . . . . . . . . 1 Ballistic Gun 5 | 1 . . . . . 1 . . . 1 2 Ballistic Cannon 1 | . . . . . . . . . . 1 . Launcher . | . . . . . . . . . . . . Special Weapon . | . . . . . . . . . . . . Impact Weapon 1 | . . . . . . . . . . . 1 Slashing Weapon . | . . . . . . . . . . . . Piercing Weapon . | . . . . . . . . . . . . Special Melee Weapon 1 | . 1 . . . . . . . . . . Unidentified Prototypes . | . . . . . . . . . . . . Parts Lost 49 | . . 3 . . . 5 . . . . 41 Power 5 | . . 1 . . . 1 . . . . 3 Propulsion 17 | . . 2 . . . 2 . . . . 13 Utility 17 | . . . . . . 1 . . . . 16 Weapon 10 | . . . . . . 1 . . . . 9 Highest Loss Streak 9 | . . 3 . . . 5 . . . . 9 To Critical Strikes . | . . . . . . . . . . . . Average Backups 12 | 4 7 7 8 6 8 9 13 14 14 14 13 Power 2 | . 1 1 2 1 1 2 2 2 2 2 2 Propulsion 2 | 3 4 2 2 1 2 2 3 3 3 3 2 Utility 4 | . . . 1 1 2 1 4 6 5 4 4 Weapon 3 | . 1 3 3 2 3 2 3 3 3 5 2 Tool/Special . | . . . . . . . . . . . . Unused Backups 30 | . 1 4 . . . 3 5 4 1 1 11 Power 6 | . . . . . . 2 . 2 . . 2 Propulsion 3 | . 1 1 . . . . . 1 . . . Utility 10 | . . 1 . . . . 2 1 1 1 4 Weapon 10 | . . 2 . . . 1 3 . . . 4 Tool/Special 1 | . . . . . . . . . . . 1 Average Slot Usage (%) 77 | . 95 99 100 100 100 97 61 60 63 67 75 Engine 3 | . 14 11 11 11 11 9 7 6 4 . . Reactor 1 | . . . . . . . . . . . 3 Treads 5 | . . . . . . . . . 4 9 9 Leg 5 | . 28 29 33 22 11 8 . . . . . Wheel 9 | . . 3 . 10 22 17 23 20 11 10 7 Device 16 | . 10 11 11 11 11 17 7 7 10 14 23 Storage 6 | . 14 11 11 11 11 16 7 6 5 5 4 Processor 4 | . . . . . . . . . . 5 8 Hackware 2 | . . 10 11 11 11 9 . . . . . Protection 2 | . . . . . . . . 4 11 5 1 Energy Gun 8 | . 13 17 22 22 22 16 7 6 5 4 6 Ballistic Gun 3 | . 14 4 . . . 1 7 6 5 5 2 Ballistic Cannon 1 | . . . . . . . . . . . 2 Peak Build Rating 134 | 6 8 18 17 22 22 28 69 79 95 111 134 Average Rating 83 | 3 7 15 17 19 22 26 68 78 90 109 114 On Entrance 39 | . 6 8 17 17 22 22 25 69 78 95 111 Avg Prop Armor Cover (%) 9 | . . 8 . 8 8 8 . . 5 8 11 Naked Turns . | . . . . . . . . . . . . Heaviest Build 145 | 12 13 17 15 50 30 33 108 115 129 129 145 Greatest Support 60 | 20 20 36 36 36 20 57 48 60 60 44 57 Greatest Overweight (x) 4 | . . 1 . 2 1 1 2 1 4 2 3 Average Overweight (x) 1 | . . . . . 1 . 2 1 2 2 1 Largest Inventory Capacity 20 | 8 8 8 8 20 15 15 15 15 15 15 15 Average Capacity 13 | 7 8 8 8 11 15 15 15 15 15 15 14 Most Carried 15 | 6 8 8 8 13 13 15 15 15 15 15 15 Average Carried 12 | 4 7 7 8 8 13 14 14 14 14 14 13 Final Capacity 15 | 8 8 8 8 15 15 15 15 15 15 15 5 Final Carried 15 | 6 8 8 8 13 13 15 15 15 15 15 1 Class Distribution -------------------- 30% | Mutant 26% | Skirmisher 19% | Scavenger-Mutant 11% | Scavenger-Skirmisher 11% | Tank Dominant Class ---------------- Mutant | -10/Materials Mutant | -9/Materials Scavenger-Mutant | -9/Mines Scavenger-Mutant | -9/Exiles Scavenger-Mutant | -8/Mines Scavenger-Mutant | -8/Materials Mutant | -7/Factory Mutant | -6/Factory Mutant | -5/Factory Skirmisher | -4/Factory Skirmisher | -3/Research Resources | -11 -10 -9 -9 -9 -8 -8 -7 -6 -5 -4 -3 ----------- Run | Yrd Mat Mat Min Exi Min Mat Fac Fac Fac Fac Res Matter Collected 2266 | 214 72 296 . 30 . 119 60 120 179 102 1074 Remotely . | . . . . . . . . . . . . Salvage Created 3206 | . 123 976 . . . 319 . 34 276 . 1478 Parts 181 | . 15 60 . . . 11 . 3 14 . 78 Haulers Intercepted . | . . . . . . . . . . . . Recyclers Shooed 2 | . 1 . . . . . . . . . 1 Parts Field Recycled . | . . . . . . . . . . . . Retrieved Matter . | . . . . . . . . . . . . Parts Self-Destructed . | . . . . . . . . . . . . Prevented . | . . . . . . . . . . . . Parts Restored . | . . . . . . . . . . . . Kills | -11 -10 -9 -9 -9 -8 -8 -7 -6 -5 -4 -3 ------- Run | Yrd Mat Mat Min Exi Min Mat Fac Fac Fac Fac Res Combat Hostiles Destroyed 65 | . 7 26 . . . 5 . . 5 . 22 Guns 56 | . 7 25 . . . 4 . . 5 . 15 Cannons 6 | . . . . . . . . . . . 6 AOE 2 | . . 1 . . . . . . . . 1 Classes Destroyed 10 | . 2 6 . . . . . . 1 . 1 Worker 3 | . . 1 . . . . . 2 . . . Builder 1 | . . 1 . . . . . . . . . Recycler 5 | . . 1 . . . 2 . . . . 2 Operator 1 | . . 1 . . . . . . . . . Drone 1 | . . . . . . . . . . . 1 Swarmer 18 | . 6 10 . . . 2 . . . . . Grunt 15 | . 1 11 . . . 3 . . . . . Duelist 1 | . . 1 . . . . . . . . . Sentry 5 | . . 4 . . . . . . . . 1 Programmer 26 | . . . . . . . . . 5 . 21 Best Kill Streak 15 | . 4 15 . . . 3 . 2 2 . 3 Combat Bots Only 14 | . 4 14 . . . 3 . . 2 . 3 Max Kills in Single Turn 2 | . 1 2 . . . 2 . 1 1 . 2 Gunslinging 1 | . . 1 . . . . . . . . . Exploded 1 | . . 1 . . . . . . . . 1 Melee . | . . . . . . . . . . . . Uniques/NPCs Destroyed . | . . . . . . . . . . . . Combat | -11 -10 -9 -9 -9 -8 -8 -7 -6 -5 -4 -3 -------- Run | Yrd Mat Mat Min Exi Min Mat Fac Fac Fac Fac Res Hostile Shots Fired 595 | . 23 135 2 . . 43 . . 49 . 343 Missed 157 | . 10 45 . . . 8 . . 16 . 78 Hits 438 | . 13 90 2 . . 35 . . 33 . 265 Melee 4 | . . 4 . . . . . . . . . Projectile 434 | . 13 86 2 . . 35 . . 33 . 265 AOE 3 | . . . 3 . . . . . . . . Critical Strikes 31 | . . 1 . . . . . . 3 . 27 Actively Blocked 17 | . . . . . . . . . . . 17 Part Disruptions 3 | . . . . . . . . . . . 3 Damage Taken 8255 | . 92 968 99 . . 562 . . 647 . 5887 Core 1729 | . . 190 . . . 190 . . 33 . 1316 Absorbed by Shields . | . . . . . . . . . . . . Ignored by Resistances 666 | . . . . . . . . . 20 . 646 Core Remaining (%) 89 | 100 100 . . . 52 65 100 100 96 100 . Volleys Fired 236 | . 12 54 . . . 18 . 3 24 14 111 Largest 3 | . 2 2 . . . 2 . 1 2 2 3 Hottest 374 | . 70 126 . . . 126 . 61 84 89 374 Shots Fired 476 | . 24 108 . . . 35 . 3 47 16 243 Gun 390 | . 24 108 . . . 35 . 3 47 4 169 Cannon 86 | . . . . . . . . . . 12 74 Launcher . | . . . . . . . . . . . . Special . | . . . . . . . . . . . . Kinetic 170 | . 12 17 . . . 6 . . 23 14 98 Thermal 306 | . 12 91 . . . 29 . 3 24 2 145 Explosive . | . . . . . . . . . . . . Electromagnetic . | . . . . . . . . . . . . Robot Hit Streak 15 | . 3 15 . . . 8 . 2 9 6 11 Robot Miss Streak 6 | . 2 5 . . . 3 . 1 3 . 6 Penetration Max 1 | . . . . . . . . . . . 1 Secondary Targets 10 | . 1 7 . . . 1 . . . . 1 Max Gunslinging Chain 1 | . 1 1 . . . 1 . . . . 1 Shots Hit Robots 297 | . 14 68 . . . 22 . 2 32 4 155 Core Hits 116 | . 8 36 . . . 9 . 2 8 1 52 Critical Kills . | . . . . . . . . . . . . Critical Parts Destroyed 2 | . . . . . . . . . . . 2 Critical Strikes 22 | . 2 3 . . . 1 . . 2 . 14 Burn 15 | . 2 3 . . . 1 . . 2 . 7 Destroy 1 | . . . . . . . . . . . 1 Blast 5 | . . . . . . . . . . . 5 Smash 1 | . . . . . . . . . . . 1 Melee Attacks 8 | . 2 . . . . . . . . . 6 Impact 6 | . . . . . . . . . . . 6 Slashing . | . . . . . . . . . . . . Piercing . | . . . . . . . . . . . . Sneak Attacks 2 | . 2 . . . . . . . . . . Combat Hostiles . | . . . . . . . . . . . . Follow-up Attacks . | . . . . . . . . . . . . Damage Inflicted 7679 | . 169 1244 . . . 455 . 40 720 53 4998 Guns 5642 | . 169 1244 . . . 455 . 40 720 53 2961 Cannons 1743 | . . . . . . . . . . . 1743 Explosions 191 | . . . . . . . . . . . 191 Melee 93 | . . . . . . . . . . . 93 Ramming 10 | . . . . . . . . . . . 10 Kinetic 2701 | . 42 164 . . . 31 . . 320 33 2111 Thermal 4684 | . 127 1080 . . . 424 . 40 400 20 2593 Explosive 191 | . . . . . . . . . . . 191 Electromagnetic . | . . . . . . . . . . . . Impact 93 | . . . . . . . . . . . 93 Slashing . | . . . . . . . . . . . . Piercing . | . . . . . . . . . . . . Highest Corruption 51 | . . . . . . . . . 4 . 51 Average Corruption 13 | . . . . . . . . . 3 . 16 Corruption Purged . | . . . . . . . . . . . . Corruption Blocked . | . . . . . . . . . . . . Effects 93 | . . . . . . . . . 8 . 85 Message Errors 21 | . . . . . . . . . 2 . 19 Matter Fused 24 | . . . . . . . . . 1 . 23 Heat Flow Errors 5 | . . . . . . . . . . . 5 Energy Discharges 6 | . . . . . . . . . 1 . 5 Parts Rejected 3 | . . . . . . . . . . . 3 Parts Fused 1 | . . . . . . . . . 1 . . Data Loss (minor) 7 | . . . . . . . . . 1 . 6 Data Loss (major) 6 | . . . . . . . . . . . 6 Misfires 3 | . . . . . . . . . 1 . 2 Alerts 1 | . . . . . . . . . . . 1 Misdirections 8 | . . . . . . . . . . . 8 Weapon Failures 8 | . . . . . . . . . 1 . 7 Overload Shots 9 | . . . . . . . . . . . 9 Overflow Damage 241 | . . . . . . . . . . . 241 Projectiles 81 | . . . . . . . . . . . 81 Explosions 105 | . . . . . . . . . . . 105 Melee 55 | . . . . . . . . . . . 55 Knockbacks 14 | . . . . . . . . . . . 14 Impact 1 | . . . . . . . . . . . 1 Kinetic 12 | . . . . . . . . . . . 12 Secondary 1 | . . . . . . . . . . . 1 Self-Inflicted Damage 121 | . . . . . . . . . . . 121 Shots 1 | . . . . . . . . . . . 1 Rammed 3 | . . . . . . . . . . . 3 Targets Rammed 3 | . . . . . . . . . . . 3 Kicked . | . . . . . . . . . . . . Crushed . | . . . . . . . . . . . . Highest Temperature 413 | . . 252 . . . 413 . 4 134 . 353 Average Temperature 95 | . . 87 . . . 208 . 2 45 . 83 Received Heat Transfer 642 | . . 246 . . . 297 . . 27 . 72 Effects 6 | . . . . . . 3 . . . . 3 Interference 6 | . . . . . . 3 . . . . 3 Siege Activations . | . . . . . . . . . . . . Martial Activations . | . . . . . . . . . . . . Shielding Activations . | . . . . . . . . . . . . Robots Disrupted . | . . . . . . . . . . . . Combat Hostiles . | . . . . . . . . . . . . Robots Corrupted . | . . . . . . . . . . . . Combat Hostiles . | . . . . . . . . . . . . Parts Fried . | . . . . . . . . . . . . Impact Corruptions 2 | . . . . . . . . . . . 2 Robots Melted 1 | . . . . . . 1 . . . . . Combat Hostiles 1 | . . . . . . 1 . . . . . Parts Melted 16 | . 2 7 . . . . . . 2 . 5 Heat Transferred 8488 | . 518 2553 . . . 925 . 74 740 37 3641 Parts Sabotaged . | . . . . . . . . . . . . Parts Stolen . | . . . . . . . . . . . . Parts Stripped . | . . . . . . . . . . . . Power Chain Reactions . | . . . . . . . . . . . . Alert | -11 -10 -9 -9 -9 -8 -8 -7 -6 -5 -4 -3 ------- Run | Yrd Mat Mat Min Exi Min Mat Fac Fac Fac Fac Res Maximum Alert Level 1 | . . 1 . . . . . . . . . Low Security (%) 98 | 100 100 75 100 . 100 100 100 100 100 100 100 Level 1 1 | . . 24 . . . . . . . . . Level 2 . | . . . . . . . . . . . . Level 3 . | . . . . . . . . . . . . Level 4 . | . . . . . . . . . . . . Level 5 . | . . . . . . . . . . . . High Security . | . . . . . . . . . . . . Max Security . | . . . . . . . . . . . . Peak Influence 334 | . 146 334 105 . . 80 59 18 59 40 198 Initial 105 | . . 18 105 . . . 2 18 . 12 . Average 51 | . 64 136 94 . . 18 5 1 15 2 73 Influence Increases 2561 | . 182 694 . . . 175 59 10 284 62 1095 Destroy 0b10 Robot/C 1600 | . 140 520 . . . 100 40 . 160 20 620 Destroy 0b10 Robot/NC 70 | . . 20 . . . 10 . 10 15 5 10 Destroy Leader 354 | . 20 110 . . . 20 10 . 54 10 130 Allied During Kill 111 | . . . . . . . 9 . 43 3 56 Trap Triggered on 0b10 10 | . . 10 . . . . . . . . . Successful Hack 33 | . 6 4 . . . 15 . . . 8 . Disable Machine 15 | . . . . . . . . . . . 15 Destroy Structure 113 | . 1 . . . . . . . 12 16 84 Lose Combat Pursuer 255 | . 15 30 . . . 30 . . . . 180 Influence Decreases 2467 | . 136 470 195 75 . 169 26 49 258 88 1001 Entered New Map 307 | . . 28 165 75 . . 4 21 . 14 . Time Decay 1150 | . 136 262 30 . . 129 22 28 192 74 277 Lost Part 480 | . . 30 . . . 40 . . . . 410 Lost Ally 380 | . . . . . . . . . 66 . 314 Purge Threat 150 | . . 150 . . . . . . . . . Squads Dispatched 25 | . 1 2 . . . 1 1 1 3 4 12 Investigation 2 | . . 1 . . . . 1 . . . . Extermination 16 | . . . . . . . . 1 3 1 11 Reinforcement 4 | . 1 1 . . . 1 . . . . 1 Assault . | . . . . . . . . . . . . Garrison 3 | . . . . . . . . . . 3 . Intercept . | . . . . . . . . . . . . Searches Triggered . | . . . . . . . . . . . . Construction Impeded . | . . . . . . . . . . . . Haulers Reinforced . | . . . . . . . . . . . . Active Scanning Responses . | . . . . . . . . . . . . Cargo Convoy Interrupts . | . . . . . . . . . . . . Stealth | -11 -10 -9 -9 -9 -8 -8 -7 -6 -5 -4 -3 --------- Run | Yrd Mat Mat Min Exi Min Mat Fac Fac Fac Fac Res Distress Signals 13 | . 2 4 . . . 1 . . 1 1 4 Communications Jammed . | . . . . . . . . . . . . Distress Signals . | . . . . . . . . . . . . Times Spotted 164 | . 14 39 11 . . 9 3 1 11 8 68 Peak Tracking Total 15 | . 5 8 15 . . 5 2 1 4 2 12 Tactical Retreats 13 | . 1 2 . . . 1 . . . . 9 Traps | -11 -10 -9 -9 -9 -8 -8 -7 -6 -5 -4 -3 ------- Run | Yrd Mat Mat Min Exi Min Mat Fac Fac Fac Fac Res Traps Triggered 2 | . . . . . . 1 . 1 . . . Indirectly . | . . . . . . . . . . . . Trap Hack Attempts . | . . . . . . . . . . . . Triggered . | . . . . . . . . . . . . Disarmed . | . . . . . . . . . . . . Reprogrammed 3 | . . 3 . . . . . . . . . Reused 1 | . . 1 . . . . . . . . . Traps Extracted . | . . . . . . . . . . . . Installed . | . . . . . . . . . . . . Triggered 1 | . . 1 . . . . . . . . . Machines | -11 -10 -9 -9 -9 -8 -8 -7 -6 -5 -4 -3 ---------- Run | Yrd Mat Mat Min Exi Min Mat Fac Fac Fac Fac Res Machines Disabled 1 | . . . . . . . . . . . 1 Max in Single Turn 1 | . . . . . . . . . . . 1 Machines Repaired . | . . . . . . . . . . . . Machines Dismantled . | . . . . . . . . . . . . Machines Sabotaged . | . . . . . . . . . . . . Overloaded Fab Kills . | . . . . . . . . . . . . Hacking | -11 -10 -9 -9 -9 -8 -8 -7 -6 -5 -4 -3 --------- Run | Yrd Mat Mat Min Exi Min Mat Fac Fac Fac Fac Res Machines Accessed 14 | . 2 5 . 1 . 2 1 1 . 2 . Terminals 12 | . 2 5 . . . 1 1 1 . 2 . Fabricators . | . . . . . . . . . . . . Repair Stations . | . . . . . . . . . . . . Recycling Units . | . . . . . . . . . . . . Scanalyzers 1 | . . . . . . 1 . . . . . Garrison Access . | . . . . . . . . . . . . Total Hacks 26 | . 3 12 . 1 . 4 2 1 . 3 . Successful 11 | . 2 5 . 1 . 2 . . . 1 . Failed 15 | . 1 7 . . . 2 2 1 . 2 . Catastrophic 4 | . 1 . . . . . . 1 . 2 . Database Lockouts . | . . . . . . . . . . . . Manual 8 | . 2 2 . 1 . 1 . . . 2 . Terminals 22 | . 3 12 . . . 1 2 1 . 3 . Fabricators . | . . . . . . . . . . . . Repair Stations . | . . . . . . . . . . . . Recycling Units . | . . . . . . . . . . . . Scanalyzers 3 | . . . . . . 3 . . . . . Garrison Access . | . . . . . . . . . . . . Terminal Hacks 8 | . 1 5 . 1 . . . . . 1 . Prototype ID Bank 1 | . . 1 . . . . . . . . . Branch Access Points 1 | . . . . . . . . . . 1 . Alert Level 2 | . 1 1 . . . . . . . . . Unreport Threat 1 | . . 1 . . . . . . . . . Reprogram Traps 1 | . . 1 . . . . . . . . . Zone Layout 1 | . . 1 . . . . . . . . . Proto ID Catalog 1 | . . . . 1 . . . . . . . Fabricator Hacks . | . . . . . . . . . . . . Repair Station Hacks . | . . . . . . . . . . . . Recycling Unit Hacks . | . . . . . . . . . . . . Scanalyzer 1 | . . . . . . 1 . . . . . Insert Component 1 | . . . . . . 1 . . . . . Garrison Access Hacks . | . . . . . . . . . . . . Unauthorized Hacks 2 | . 1 . . . . 1 . . . . . Terminals 2 | . 1 . . . . 1 . . . . . Assimilate 2 | . 1 . . . . 1 . . . . . Fabricators . | . . . . . . . . . . . . Repair Stations . | . . . . . . . . . . . . Recycling Units . | . . . . . . . . . . . . Scanalyzers . | . . . . . . . . . . . . Garrison Access . | . . . . . . . . . . . . Data Cores Recovered . | . . . . . . . . . . . . Used . | . . . . . . . . . . . . Hacking Detections 8 | . 1 3 . . . 1 1 1 . 1 . Full Trace Events 2 | . . 1 . . . . 1 . . . . Feedback Events . | . . . . . . . . . . . . Feedback Blocked . | . . . . . . . . . . . . Robot Schematics Acquired . | . . . . . . . . . . . . Robots Built . | . . . . . . . . . . . . Authchips . | . . . . . . . . . . . . Time . | . . . . . . . . . . . . Total Robot Build Rating . | . . . . . . . . . . . . Part Schematics Acquired . | . . . . . . . . . . . . Parts Built . | . . . . . . . . . . . . Authchips . | . . . . . . . . . . . . Time . | . . . . . . . . . . . . Total Part Build Rating . | . . . . . . . . . . . . Part Studies Acquired . | . . . . . . . . . . . . Parts Repaired . | . . . . . . . . . . . . Time . | . . . . . . . . . . . . Parts Recycled . | . . . . . . . . . . . . Recycled Matter . | . . . . . . . . . . . . Retrieved Matter . | . . . . . . . . . . . . Retrieved Components . | . . . . . . . . . . . . Parts Scanalyzed . | . . . . . . . . . . . . Part Schematics Acquired . | . . . . . . . . . . . . Parts Damaged . | . . . . . . . . . . . . Bothacking | -11 -10 -9 -9 -9 -8 -8 -7 -6 -5 -4 -3 ------------ Run | Yrd Mat Mat Min Exi Min Mat Fac Fac Fac Fac Res Used RIF Installer . | . . . . . . . . . . . . Robots Hacked 1 | . 1 . . . . . . . . . . Non-combat 1 | . 1 . . . . . . . . . . Combat . | . . . . . . . . . . . . Robot Hacks Applied 1 | . 1 . . . . . . . . . . no_distress 1 | . 1 . . . . . . . . . . Relay Couplers Released . | . . . . . . . . . . . . Fabnet Peak Effective % . | . . . . . . . . . . . . Robots Rewired 2 | . . . . . . . 1 1 . . . Allies Hacked . | . . . . . . . . . . . . Hacks Repelled . | . . . . . . . . . . . . Allies | -11 -10 -9 -9 -9 -8 -8 -7 -6 -5 -4 -3 -------- Run | Yrd Mat Mat Min Exi Min Mat Fac Fac Fac Fac Res Total Allies 4 | . 1 . . . . 1 1 1 . . . Largest Group 2 | . 1 . . . . 1 1 2 2 . . Highest-Rated Group 46 | . 10 . . . . 10 16 46 46 . . Highest-Rated Ally 30 | . 10 . . . . 10 16 30 30 . . Total Orders 21 | . . . . . . . 2 . 5 3 11 STAY 2 | . . . . . . . . . . 2 . RETURN 19 | . . . . . . . 2 . 5 1 11 Ally Attacks 237 | . . . . . . . 17 1 92 9 118 Total Damage 3590 | . . . . . . . 213 . 1243 278 1856 Kills 22 | . . . . . . . 2 . 7 3 10 Allies Corrupted 2 | . . . . . . . . . . . 2 Allies Melted . | . . . . . . . . . . . . Intel | -11 -10 -9 -9 -9 -8 -8 -7 -6 -5 -4 -3 ------- Run | Yrd Mat Mat Min Exi Min Mat Fac Fac Fac Fac Res Active Infowar (turns) 6172 | . . . . . . . . 147 932 971 4122 Optics 5093 | . . . . . . . . . . 971 4122 Terrain 3365 | . . . . . . . . . . . 3365 Traps 4068 | . . . . . . . . 147 932 971 2018 Robot Analysis Total . | . . . . . . . . . . . . Derelict Logs Recovered . | . . . . . . . . . . . . Drone Launches 86 | . . . . . . . 8 . 24 3 51 Drone Recoveries 56 | . . . . . . . 8 . 15 2 31 Exploration | -11 -10 -9 -9 -9 -8 -8 -7 -6 -5 -4 -3 ------------- Run | Yrd Mat Mat Min Exi Min Mat Fac Fac Fac Fac Res Turns Passed 9321 | 67 359 644 60 643 136 459 375 552 933 971 4122 Spaces Moved 5243 | 51 242 344 48 582 144 394 266 320 556 513 1783 Core 103 | 14 . . . . . . . . . . 89 Treads 174 | . . . . . . . . . . . 174 Legs 904 | 37 242 307 48 270 . . . . . . . Wheels 4023 | . . 37 . 312 144 394 266 320 556 513 1481 Hover 39 | . . . . . . . . . . . 39 Flight . | . . . . . . . . . . . . Fastest Speed 50 | 50 120 80 120 80 95 95 130 115 130 130 50 Average Speed 122 | 100 120 116 120 107 95 95 130 115 130 130 132 Slowest Speed 330 | 120 120 190 120 120 95 115 130 115 160 130 330 Overloaded Moves . | . . . . . . . . . . . . Propulsion Burnouts . | . . . . . . . . . . . . Robots Hopped . | . . . . . . . . . . . . Potential Cave-ins 2 | . . . . . . . . . . 2 . Cave-ins Triggered . | . . . . . . . . . . . . Exploration Rate (%) 27 | 3 44 37 11 89 41 27 8 6 13 17 34 Regions Visited 11 Branch Regions 3 Pre-discovered Areas 1 | . . . 1 . . . . . . . . Known Exits Taken . | . . . . . . . . . . . . Unknown Exits Taken 11 | 1 1 1 1 1 1 1 1 1 1 1 . Scrap Searched . | . . . . . . . . . . . . Spaces Dug 10 | . . . . . . . . . . 9 1 Terrain Destroyed 56 | . . . . . . . . . . 9 47 Melee . | . . . . . . . . . . . . Projectile 18 | . . . . . . . . . . 9 9 AOE 38 | . . . . . . . . . . . 38 Terrain Rammed . | . . . . . . . . . . . . Walls Destroyed . | . . . . . . . . . . . . Machines Disabled . | . . . . . . . . . . . . Actions | -11 -10 -9 -9 -9 -8 -8 -7 -6 -5 -4 -3 --------- Run | Yrd Mat Mat Min Exi Min Mat Fac Fac Fac Fac Res Total 7737 | 63 286 486 50 599 143 444 305 504 724 798 3335 Wait 1961 | 1 18 39 3 . . 4 9 160 131 254 1342 Move 5232 | 50 241 343 47 581 143 393 265 319 555 512 1783 Hop . | . . . . . . . . . . . . Pick Up 92 | 6 4 13 . 6 . 12 15 6 3 4 23 Fast Attach 30 | 6 1 . . . . 3 . . 3 1 16 Attach 40 | . . 6 . . . 4 1 2 2 2 23 Detach 2 | . . . . . . . . 1 . . 1 Swap 45 | . 4 14 . 5 . 3 . 2 1 8 8 Drop 78 | . 4 17 . 7 . 7 13 4 5 3 18 Fire 236 | . 12 54 . . . 18 . 3 24 14 111 Melee 8 | . 2 . . . . . . . . . 6 Ram 4 | . . . . . . . . . . . 4 Kick . | . . . . . . . . . . . . Crush . | . . . . . . . . . . . . Escape Stasis . | . . . . . . . . . . . . Rewire 9 | . . . . . . . 2 7 . . . Trap . | . . . . . . . . . . . . Miscellaneous . | . . . . . . . . . . . . Route ------- -11/Scrapyard -10/Materials (discovered 2 exits: *Mat / [*Min]) -9/Materials -9/Mines -9/Exiles -8/Mines -8/Materials -7/Factory (discovered 2 exits: *Fac x2) -6/Factory -5/Factory -4/Factory (discovered 4 exits: *Res / Upp x2 / Arm) -3/Research (discovered 2 exits: *Tes x2) History --------- Turn | Location | Event 11 | -11/Scrapyard | Discovered new exit (range 14) 68 | -11/Scrapyard | Entered Materials 248 | -10/Materials | Discovered new exit (range 15) 300 | -10/Materials | Build established: Mutant 374 | -10/Materials | Discovered new exit (range 15) 427 | -10/Materials | Entered another Materials area 427 | -9/Materials | Evolved 2 slots: Propulsion x1, Utility x1 750 | -9/Materials | Lost 3 parts (1p2n) 781 | -9/Materials | Destroyed 14 combat bots 850 | -9/Materials | Discovered new exit (range 15) 1071 | -9/Materials | Entered Mines 1072 | -9/Mines | Learned location of Storage (-7) 1091 | -9/Mines | Met a Derelict bent on vengeance 1095 | -9/Mines | Assembled infested the area 1100 | -9/Mines | Assisted by a Guerilla fighting off Assembled 1104 | -9/Mines | Build established: Scavenger-Mutant 1125 | -9/Mines | Deemed a non-threat by the Exiles lab entrance 1126 | -9/Mines | Discovered new exit (range 5) 1131 | -9/Mines | Entered Exiles 1166 | -9/Exiles | Met 8R-AWN 1183 | -9/Exiles | Met EX-HEX 1227 | -9/Exiles | Met EX-DEC 1258 | -9/Exiles | Visited The Gauntlet 1400 | -9/Exiles | Met EX-BIN 1423 | -9/Exiles | Aligned with FarCom system 1424 | -9/Exiles | Given EX-Vault access code 1451 | -9/Exiles | Opened EX-Vault 1465 | -9/Exiles | Found Army-in-a-Box 1480 | -9/Exiles | Warned to stay clear of 0b10 Research branches 1766 | -9/Exiles | Discovered new exit (range 10) 1774 | -9/Exiles | Left Exiles lab with Army-in-a-Box 1774 | -9/Exiles | Entered Mines 1905 | -8/Mines | Discovered new exit (range 5) 1910 | -8/Mines | Entered Materials 1910 | -8/Materials | Evolved 2 slots: Utility x2 2235 | -8/Materials | Discovered new exit (range 5) 2351 | -8/Materials | Lost 5 parts (1p2n1u1w) 2369 | -8/Materials | Entered Factory 2369 | -7/Factory | Evolved 2 slots: Utility x2 2593 | -7/Factory | Discovered new exit (range 5) 2596 | -7/Factory | Build established: Mutant 2648 | -7/Factory | Discovered new exit (range 13) 2744 | -7/Factory | Entered another Factory area 2744 | -6/Factory | Accompanied by 1 ally 2744 | -6/Factory | Evolved 2 slots: Propulsion x1, Utility x1 3095 | -6/Factory | Discovered new exit (range 16) 3296 | -6/Factory | Entered another Factory area 3296 | -5/Factory | Accompanied by 2 allies 3296 | -5/Factory | Evolved 2 slots: Utility x2 3561 | -5/Factory | Lost 3 allies 3802 | -5/Factory | Lost 6 allies 4223 | -5/Factory | Discovered new exit (range 4) 4229 | -5/Factory | Entered another Factory area 4229 | -4/Factory | Evolved 2 slots: Propulsion x1, Utility x1 4519 | -4/Factory | Build established: Skirmisher 4597 | -4/Factory | Spotted B-86 Titan 4833 | -4/Factory | Garrison activated, responded to threat 5142 | -4/Factory | Identified exit to Upper Caves 5142 | -4/Factory | Identified exit to Armory 5188 | -4/Factory | Discovered new exit (range 8) 5200 | -4/Factory | Entered Research 5200 | -3/Research | Evolved 2 slots: Utility x1, Weapon x1 5673 | -3/Research | Build established: Tank 6773 | -3/Research | Build established: Skirmisher 7568 | -3/Research | System corruption reached 10% 7581 | -3/Research | Spotted B-86 Titan 7624 | -3/Research | Lost 9 allies 7722 | -3/Research | Lost 3 allies 8050 | -3/Research | Build established: Scavenger-Skirmisher 8157 | -3/Research | Lost 8 parts (2n4u2w) 8162 | -3/Research | Found Fusion Bomb Launcher 8674 | -3/Research | Lost 6 parts (3n1u2w) 8773 | -3/Research | Discovered new exit (range 22) 8824 | -3/Research | Identified exit to Testing 9041 | -3/Research | Lost 6 parts (1p1n3u1w) 9211 | -3/Research | System corruption reached 30% 9241 | -3/Research | Lost 8 parts (1p4n1u2w) 9260 | -3/Research | Core integrity fell below 50% 9303 | -3/Research | Discovered exit to Testing (range 4) 9308 | -3/Research | Core integrity fell below 20% 9322 | -3/Research | Destroyed by P-80 Master with Gamma Rifle Last Messages --------------- 09276_ Imp. Antigrav System destroyed. 09281_ System corrupted: Matter fused (-5). 09281_ Trap Scanner destroyed. 09283_ W-44 Eye sends out distress signal. 09286_ Connecting with Terminal... 09286_ Current location identified: Research 09292_ Imp. System Guard destroyed. 09292_ Adv. Target Analyzer destroyed. 09297_ System corrupted: Matter fused (-8). 09303_ EXIT=FOUND: TESTING 09303_ Knocked back. 09307_ Penetrated by Slug. 09307_ Knocked back. 09311_ K-01 Serf destroyed. 09311_ K-01 Serf collects debris. 09315_ System corrupted: Graphene Brace rejected. 09320_ Adv. Signal Interpreter destroyed. 09320_ K-01 Serf cleans the Antimatter Diverter. 09321_ Slammed into K-01 Serf. Map ----- +----------------------------------------------------+ | ????????????????????????????????????? | | ?????????????????????????????????????? | | +####### ?????????????????????????????????????? | | ? #??? ????????????????????????????????????? | | ? ? ? #??#???#???????????????????????????????????? | | ? ?? #???? ?????????????????????????????????????? | | ??? ???###??????????????????????????????????????? | | ####??#??????????????????????????????????????????? | | ????? ??????#???????????????????????????????????? | | ? ? ?? ????????????????????????????????????????? | | ? ? ?????????????????????????????????????????????? | | ???????? ????????????????????????????????????????? | | ?? ???? ?????????????????????????????????????????? | | ?? ?????????????????????????????????????????????? | | ?? ?????????????????????????????????????????????? | | ?? ??????????????????????????????????????????????? | | ???? ???????????????????????????????????????????? | | ?????????????????????????????????????????????????? | | ?? ??????????????????????????????????????????????? | | ?????? ??????????????????????????????????????????? | | ????????#??/????##################???????????????? | | ????????????????? #???????????????? | | ??????????????????? ?????????????????? | | # ????????? ???????????????????? | | ??????????? k ?????????????????????? | | ####+###??????????#######@###????????????????????? | | ???? ????#????????# gg #????????????????????? | | ??????????????????# R p #????????????????????? | | ???????? ??########A k"""p #????????????????????? | | ???????????# + """ #????????????????????? | | ???????????# # p """ #???w????????????????? | | ???????????# # #????????????????????? | | ? ?????????# +! #????????????????????? | | ???????????# * #### #????????????????????? | | ???????????#%%=##############????????????????????? | | ?????#?????# !g## #????????????????????? | | ???????????# ## #????????????????????? | | ##?### ##### H ## #????????????????????? | | ## #????????????????????? | | ??########## % ## #????????????????????? | | ??????????# #########+####????????????????????? | | ??????????## ## # #??????????????????????? | | ???????#??# # % # #??????????????????????? | | #????#??# # / #??????????????????????? | | #???#???# > + # #??????????????????????? | | ##?#????# # # #??????????????????????? | | +##???#??## %# # #??????????????????????? | | ??? ??????### ### # #??????????????????????? | | ????????????# #?####### #??????????????????????? | | ????? ####### ######### #??????????????????????? | +----------------------------------------------------+ Best States ------------- Heat Dissipation 160 Energy Generation 23 Energy Capacity 340 Matter Stores 300 Matter Capacity 450 Sight Range 22 Terrain Scan Range 24 Terrain Scan Density 10 Additional Mass Support 9 Corruption Containment 12 Armor Coverage 375 Resistance: KI 20 Resistance: EM 25 Evasion (%) 55 Target Analysis 12 Recoil Reduction 2 Offensive Hacking 10 Item Schematics ----------------- None Robot Schematics ------------------ None Fabricated ------------ Nothing Repaired ---------- Nothing Studied --------- None Alien Tech Used ----------------- None Achievements -------------- I Laugh At Your Crits Challenges ------------ None Game ------ Seed GrenadeMyomerSpoofer Manual? 0 Play Time 01:55:17 Cumulative 167.7 hours Start 2026.08.28 @ 17:15:50 End 2026.08.28 @ 19:25:27 Sessions 1 Manual Loads 0 Difficulty Rogue Special Mode None Game No. 93 Rogue 83 Adventurer 5 Explorer 5 Win Type - Total 10 Types 8/0/1/1/0/0/0/0/0/0 Lore% 45 Gallery% 55 Achievement% 33 Wizard Run 0 Options --------- Layout 2 ASCII 0 Keyboard 0 Movement Mouse Keybinds 1 Fullscreen 1 Font 20/Terminus Map View 50x44 Zoom Use 0% Tactical HUD 1 Map Filters NONE Filters SATURATION(60) Steam 1 RUN: 02de6937-bdcc-450c-bf19-70e07819dfec